bitfinex-derivatives/quotes_ETHF0:USTF0_20250602
["timestamp","ask_amount","ask_price","bid_price","bid_amount"]
[1748854174079,19.26250676,2501.3,2501.2,41.96220955]
[1748854174780,19.25850676,2501.3,2501.2,41.96220955]
[1748854176377,0.00599676,2501.3,2501.2,42.44174808]
[1748854176583,0.00599676,2501.3,2501.2,43.74754808]
[1748854176878,18.76899676,2501.3,2501.2,43.74754808]
[1748854177080,0.00599676,2501.3,2501.2,43.74754808]
[1748854178381,0.00599676,2501.3,2501.2,43.26801808]
[1748854179381,0.00599676,2501.3,2501.2,43.74754808]
[1748854180181,0.00599676,2501.3,2501.2,43.26801808]
[1748854180381,0.00599676,2501.3,2501.2,43.74754808]
[1748854180790,0.00599676,2501.3,2501.2,43.75636684]
[1748854181684,0.00599676,2501.3,2501.2,44.94944318]
[1748854181990,0.00599676,2501.3,2501.2,49.94944318]
[1748854182186,0.6358,2501.8,2501.2,49.86594271]
[1748854182383,18.734,2501.7,2501.5,3.2078]
[1748854182585,0.47946,2501.6,2501.4,1.67260796]
[1748854182885,1.84976,2501.6,2501.4,1.67260796]
[1748854183085,1.84976,2501.6,2501.5,41.97126706]
[1748854183489,2.52346,2501.6,2501.5,41.97126706]
[1748854183990,2.52346,2501.6,2501.5,1.17126706]
[1748854184185,2.73098285,2501.6,2501.5,1.17126706]
[1748854184394,0.47953,2501.2,2501.1,1.19311796]
[1748854184579,0.47955,2501.1,2500.9,4.40091796]
[1748854184784,2.70568325,2501.1,2501.0,40.80599676]
[1748854184986,2.70567011,2501.1,2501.0,40.80599676]
[1748854185188,2.70566942,2501.1,2501.0,41.9793063]
[1748854185386,2.70566926,2501.1,2501.0,41.9793063]
[1748854185589,2.70566926,2501.1,2501.0,1.1793063]
[1748854186288,2.49815,2501.1,2501.0,1.1793063]
[1748854186496,2.70567562,2501.1,2501.0,1.1793063]
[1748854186687,2.22612562,2501.1,2501.0,1.1793063]
[1748854186887,2.0186,2501.1,2501.0,2.35299052]
[1748854187093,2.70571421,2501.1,2501.0,2.35299052]
[1748854187295,2.70569972,2501.1,2501.0,2.35299052]
[1748854187498,2.2261628,2501.1,2501.0,2.35299052]
[1748854187985,2.70579208,2501.1,2501.0,2.35299052]
[1748854188187,2.49815,2501.1,2501.0,2.35299052]
[1748854188393,2.70580572,2501.1,2501.0,2.35299052]
[1748854188698,2.70581584,2501.1,2501.0,2.35299052]
[1748854189100,2.70592913,2501.1,2501.0,2.35299052]
[1748854189295,2.49815,2501.1,2501.0,2.35299052]
[1748854189491,2.7059277,2501.1,2501.0,2.35299052]
[1748854189803,2.70595146,2501.1,2501.0,2.35299052]
[1748854190002,2.49815,2501.1,2501.0,2.35299052]
[1748854190591,2.70594914,2501.1,2501.0,2.35299052]
[1748854190799,2.70592861,2501.1,2501.0,2.35299052]
[1748854191303,2.49815,2501.1,2501.0,2.35299052]
[1748854191491,2.70592929,2501.1,2501.0,2.35299052]
[1748854191699,2.70591703,2501.1,2501.0,2.35299052]
[1748854192397,2.70591758,2501.1,2501.0,2.35299052]
[1748854192894,2.70590574,2501.1,2501.0,2.35299052]
[1748854193696,2.70590574,2501.1,2501.0,2.3544525]
[1748854194299,21.42889614,2501.1,2501.0,2.3544525]
[1748854194502,21.42889584,2501.1,2501.0,2.3544525]
[1748854195201,0.20779632,2501.1,2501.0,2.3544525]
[1748854195505,18.723,2501.1,2501.0,6.45061837]
[1748854196507,19.20255,2501.1,2501.0,5.97105837]
[1748854196707,18.723,2501.1,2501.0,5.97105837]
[1748854197105,19.20255,2501.1,2501.0,5.97105837]
[1748854197295,19.20255,2501.1,2501.0,2.3544525]
[1748854197500,19.20255,2501.1,2501.0,3.55047186]
[1748854197701,19.41041055,2501.1,2501.0,3.55047186]
[1748854197902,19.41041824,2501.1,2501.0,2.35466657]
[1748854198210,19.41041882,2501.1,2501.0,2.35466657]
[1748854198505,19.41041951,2501.1,2501.0,2.35466657]
[1748854198804,19.41042493,2501.1,2501.0,2.35466657]
[1748854199300,19.41041105,2501.1,2501.0,2.35466657]
[1748854199498,19.41041158,2501.1,2501.0,2.35466657]
[1748854199698,19.41040882,2501.1,2501.0,2.35466657]
[1748854200306,23.56340882,2501.1,2501.0,2.35466657]
[1748854200511,31.77117123,2501.1,2501.0,2.35466657]
[1748854200810,31.77117278,2501.1,2501.0,1.1793063]
[1748854200998,31.56335,2501.1,2501.0,1.1793063]
[1748854201403,31.77110001,2501.1,2501.0,1.1793063]
[1748854201607,31.77107928,2501.1,2501.0,1.1793063]
[1748854201804,31.77108984,2501.1,2501.0,1.1793063]
[1748854202209,31.77107943,2501.1,2501.0,1.1793063]
[1748854202505,31.77106854,2501.1,2501.0,1.1793063]
[1748854202708,32.08308139,2501.1,2501.0,1.1793063]
[1748854202908,31.87536285,2501.1,2501.0,1.1793063]
[1748854203210,32.08305291,2501.1,2501.0,1.1793063]
[1748854203400,31.87536285,2501.1,2501.0,0.12233543]
[1748854203595,32.08304491,2501.1,2501.0,0.12233543]
[1748854203806,1.19908,2500.7,2500.2,1.19620088]
[1748854204006,3.68751,2500.3,2500.2,1.19620088]
[1748854204198,0.47973,2500.2,2500.1,1.19620088]
[1748854204403,0.47976,2500.0,2499.9,0.00599676]
[1748854204603,19.20376,2500.0,2499.9,0.00599676]
[1748854206206,27.6188207,2500.0,2499.9,0.00599676]
[1748854206410,27.61882212,2500.0,2499.9,0.00599676]
[1748854206609,27.61881549,2500.0,2499.9,0.00599676]
[1748854206811,27.61860465,2500.0,2499.9,0.00599676]
[1748854207313,27.41156,2500.0,2499.9,0.00599676]
[1748854207509,28.81596,2500.0,2499.9,0.00599676]
[1748854208415,28.17892536,2500.0,2499.9,0.00599676]
[1748854209014,28.1787746,2500.0,2499.9,0.00599676]
[1748854209307,27.97196,2500.0,2499.9,0.00599676]
[1748854209513,5.29864603,2500.0,2499.9,0.00599676]
[1748854209716,27.98196,2500.0,2499.9,0.00599676]
[1748854209919,28.1886425,2500.0,2499.9,0.00599676]
[1748854211117,28.18856807,2500.0,2499.9,0.00599676]
[1748854211512,27.98196,2500.0,2499.9,0.00599676]
[1748854211711,33.18854915,2500.0,2499.9,0.00599676]
[1748854212316,33.18846135,2500.0,2499.9,0.00599676]
[1748854213115,32.98196,2500.0,2499.9,0.00599676]
[1748854213411,5.29851735,2500.0,2499.9,0.00599676]
[1748854213618,28.18350587,2500.0,2499.9,0.00599676]
[1748854214119,5.29850587,2500.0,2499.9,0.00599676]
[1748854214319,27.97696,2500.0,2499.9,0.00599676]
[1748854214516,28.18348868,2500.0,2499.9,0.00599676]
[1748854215216,27.97696,2500.0,2499.9,0.00599676]
[1748854215616,28.18329955,2500.0,2499.9,0.00599676]
[1748854216222,28.18328444,2500.0,2499.9,0.00599676]
[1748854216613,27.97696,2500.0,2499.9,0.00599676]
[1748854217117,28.18324703,2500.0,2499.9,0.00599676]
[1748854217312,33.18324703,2500.0,2499.9,0.00599676]
[1748854218113,33.18330793,2500.0,2499.9,0.00599676]
[1748854218313,32.97696,2500.0,2499.9,0.00599676]
[1748854218513,33.18332114,2500.0,2499.9,0.00599676]
[1748854218820,32.97696,2500.0,2499.9,0.00599676]
[1748854219017,33.18331412,2500.0,2499.9,0.00599676]
[1748854219523,32.97696,2500.0,2499.9,0.00599676]
[1748854219718,33.18332163,2500.0,2499.9,0.00599676]
[1748854219920,33.18331747,2500.0,2499.9,0.00599676]
[1748854220227,33.1833184,2500.0,2499.9,0.00599676]
[1748854220414,32.97696,2500.0,2499.9,0.00599676]
[1748854220614,0.47988,2499.4,2499.3,40.8]
[1748854220927,0.47988,2499.4,2499.2,0.6402]
[1748854220928,0.4799,2499.3,2499.2,0.6402]
[1748854221122,0.47996,2499.0,2498.9,0.02152]
[1748854221322,4.63496,2499.0,2498.9,40.82152]
[1748854222917,7.84276,2499.0,2498.9,0.02152]
[1748854223121,8.54016,2499.0,2498.9,0.02152]
[1748854223310,13.54016,2499.0,2498.9,0.02152]
[1748854223516,1.2001,2498.6,2497.9,1.18991136]
[1748854223712,3.2078,2498.0,2496.6,5.57648249]
[1748854224021,3.2078,2496.7,2496.6,5.57648249]
[1748854224320,22.5702,2496.7,2496.5,1.3797]
[1748854224509,18.882,2496.7,2496.5,1.3797]
[1748854224713,22.0898,2496.7,2496.4,40.8]
[1748854224926,0.48042,2496.6,2496.4,40.8]
[1748854225117,0.48044,2496.5,2496.4,40.8]
[1748854225814,3.2078,2496.7,2496.4,40.8]
[1748854226118,0.00599676,2496.8,2496.5,1.3797]
[1748854226421,0.00599676,2496.8,2496.7,0.4804]
[1748854226617,3.2078,2497.5,2496.7,3.2078]
[1748854226618,18.932,2497.1,2496.7,3.2078]
[1748854226819,0.48034,2497.0,2496.8,1.2781]
[1748854227022,26.2968,2497.1,2496.8,1.2781]
[1748854227217,26.2968,2497.1,2495.7,3.2078]
[1748854227218,3.2078,2497.1,2495.7,3.2078]
[1748854227522,3.2078,2496.4,2496.0,1.2781]
[1748854227719,18.979,2496.3,2496.2,0.00600877]
[1748854228125,18.979,2496.3,2496.2,1.28410877]
[1748854228622,0.00600877,2496.6,2496.2,1.28410877]
[1748854229014,18.986,2496.5,2496.2,1.28410877]
[1748854229620,0.00600877,2496.6,2496.5,0.48044]
[1748854229812,0.00600877,2496.6,2496.3,0.684]
[1748854230017,0.00600877,2496.6,2496.4,1.3956]
[1748854230225,0.00600877,2496.6,2496.5,0.48044]
[1748854230720,0.00600877,2496.6,2496.5,6.87604]
[1748854231827,3.2078,2497.3,2497.0,0.48033]
[1748854232125,19.001,2497.3,2497.1,3.23231]
[1748854232325,19.001,2497.3,2497.2,42.1956]
[1748854232627,0.48027,2497.4,2497.2,42.1956]
[1748854232824,18.999,2497.3,2497.2,40.8]
[1748854233322,0.00600877,2497.5,2497.2,45.8]
[1748854233625,0.00600877,2497.5,2497.4,0.48026]
[1748854234017,0.00600877,2497.5,2497.4,5.48026]
[1748854234218,0.00600877,2497.5,2497.4,46.28026]
[1748854236130,0.00600877,2497.5,2497.4,40.8]
[1748854236417,0.00600877,2497.5,2497.4,41.28026]
[1748854236821,0.00600877,2497.5,2497.4,46.28026]
[1748854237828,3.2078,2498.3,2498.2,0.48011]
[1748854238128,22.6969,2498.3,2498.0,0.48014]
[1748854238421,22.6969,2498.3,2498.2,40.8]
[1748854238925,22.2168,2498.3,2498.2,40.8]
[1748854239226,22.2168,2498.3,2498.2,41.28011]
[1748854239423,0.00600877,2498.5,2498.4,0.48007]
[1748854239625,0.00600877,2498.5,2498.3,0.6654]
[1748854240326,0.00600877,2498.5,2498.4,0.48007]
[1748854241016,19.49707877,2498.5,2498.3,0.6654]
[1748854241222,19.01700877,2498.5,2498.2,40.8]
[1748854241421,3.2078,2498.3,2498.2,40.8]
[1748854241729,3.68789,2498.3,2498.2,40.8]
[1748854241925,3.2078,2498.3,2498.2,40.8]
[1748854242127,1.87278,2498.4,2498.2,40.8]
[1748854242630,1.87277,2498.4,2498.2,40.8]
[1748854243129,0.48009,2498.3,2498.2,40.8]
[1748854243329,1.85479,2498.3,2498.2,40.8]
[1748854243830,5.06259,2498.3,2498.2,40.8]
[1748854244223,5.06259,2498.3,2498.0,0.00600877]
[1748854244224,0.48012,2498.2,2498.0,0.00600877]
[1748854244424,1.3747,2498.1,2498.0,0.00600877]
[1748854244626,1.3747,2498.1,2498.0,40.80600877]
[1748854245624,1.3747,2498.1,2498.0,41.28615877]
[1748854246027,1.3747,2498.1,2498.0,40.80600877]
[1748854246331,1.3747,2498.1,2498.0,41.28615877]
[1748854246520,0.2001,2498.1,2498.0,41.28615877]
[1748854246925,19.2021,2498.1,2498.0,41.28615877]
[1748854248941,0.2001,2498.1,2498.0,41.28615877]
[1748854249141,0.2001,2498.1,2498.0,46.28615877]
[1748854250037,0.00600877,2498.5,2498.4,0.48007]
[1748854250731,0.00600877,2498.5,2498.3,3.68788]
[1748854251035,0.00600877,2498.5,2498.3,4.97358]
[1748854252036,0.00600877,2498.5,2498.4,0.48007]
[1748854252629,0.00600877,2498.5,2498.3,3.2078]
[1748854252829,0.48007,2498.4,2498.0,41.28614877]
[1748854253031,20.2779,2498.3,2498.0,40.80600877]
[1748854253237,0.48012,2498.2,2498.0,40.80600877]
[1748854253537,1.77303,2498.1,2498.0,40.80600877]
[1748854253839,1.2929,2498.1,2498.0,40.80600877]
[1748854254333,1.77303,2498.1,2498.0,40.80600877]
[1748854254535,1.77303,2498.1,2498.0,0.00600877]
[1748854255135,6.2929,2498.1,2497.4,4.7970995]
[1748854255339,6.2929,2498.1,2497.2,0.48029]
[1748854255340,3.2078,2497.6,2497.2,0.48029]
[1748854255637,18.988,2497.5,2497.3,40.8]
[1748854256027,18.988,2497.5,2497.3,41.28028]
[1748854256231,18.988,2497.5,2497.4,0.48026]
[1748854256437,18.984,2497.5,2497.3,41.28026]
[1748854256637,18.984,2497.5,2497.4,0.48026]
[1748854257034,18.984,2497.5,2497.3,40.8]
[1748854257238,3.2078,2497.6,2497.3,40.8]
[1748854257439,18.987,2497.7,2497.6,0.48023]
[1748854258039,18.987,2497.7,2497.5,2.0695395]
[1748854258240,0.48023,2497.6,2497.5,1.5892995]
[1748854258450,1.84943,2497.6,2497.3,45.5970995]
[1748854258650,1.3692,2497.6,2497.3,42.3892995]
[1748854258956,0.48026,2497.4,2497.3,40.8]
[1748854259155,0.48026,2497.5,2497.3,40.8]
[1748854259347,1.3692,2497.4,2497.3,40.8]
[1748854259547,1.3692,2497.4,2497.3,41.28028]
[1748854259944,0.6617,2497.6,2497.5,0.48024]
[1748854260154,1.9729,2497.6,2497.5,0.48024]
[1748854260358,1.3112,2497.6,2497.5,0.48024]
[1748854260652,0.48019,2497.8,2497.5,0.48024]
[1748854260852,5.1686,2497.9,2497.8,0.48019]
[1748854261048,3.2078,2497.9,2497.8,0.48019]
[1748854261243,18.977,2498.1,2497.6,4.7970995]
[1748854261459,0.48017,2497.9,2497.7,0.4802]
[1748854261659,18.991,2498.0,2497.6,4.7970995]
[1748854261851,0.48018,2497.9,2497.7,0.4802]
[1748854262046,18.991,2498.0,2497.6,1.5892995]
[1748854262356,0.48022,2497.7,2497.5,1.5892995]
[1748854262653,0.48024,2497.5,2497.4,1.5892995]
[1748854262863,0.48024,2497.5,2497.3,43.1751553]
[1748854262864,0.48026,2497.4,2497.3,40.8]
[1748854263058,19.49726,2497.4,2497.3,40.8]
[1748854265558,19.70446794,2497.4,2497.3,40.8]
[1748854265755,19.70446585,2497.4,2497.3,40.8]
[1748854266566,24.22413683,2497.4,2496.5,1.5892995]
[1748854266755,3.2078,2497.1,2496.6,0.48042]
[1748854267063,3.2078,2497.1,2496.7,40.8]
[1748854267261,4.4962,2497.3,2496.7,40.8]
[1748854267453,0.48035,2497.0,2496.8,0.00600877]
[1748854267757,0.00600877,2497.2,2496.9,0.48035]
[1748854268154,0.00600877,2497.2,2496.8,0.00600877]
[1748854268461,18.997,2497.1,2497.0,0.48033]
[1748854268757,0.00600877,2497.2,2497.1,0.48032]
[1748854271155,0.2002,2497.3,2497.2,0.4803]
[1748854271360,0.2002,2497.3,2497.2,1.8171]
[1748854271659,18.988,2497.8,2497.2,1.8171]
[1748854271660,18.987,2497.8,2497.6,0.48022]
[1748854271865,18.987,2497.8,2497.4,3.2078]
[1748854271866,19.4672,2497.8,2497.4,3.2078]
[1748854272156,18.98900877,2497.8,2497.4,3.2078]
[1748854272355,0.00600877,2497.8,2497.7,0.4802]
[1748854272965,3.2078,2498.6,2498.1,0.48012]
[1748854273261,0.48006,2498.5,2498.2,0.4801]
[1748854273450,3.68784,2498.6,2498.0,3.2078]
[1748854273653,3.2078,2498.6,2498.4,0.48006]
[1748854273862,22.1968,2498.6,2498.4,0.48006]
[1748854274157,3.2078,2498.6,2498.4,0.48006]
[1748854274352,22.1898,2498.6,2498.3,0.00600877]
[1748854274556,22.66984,2498.6,2498.4,0.48007]
[1748854274756,22.1898,2498.6,2498.4,0.48007]
[1748854275163,22.66983,2498.6,2498.4,0.48007]
[1748854275369,22.1898,2498.6,2498.5,0.48005]
[1748854275754,0.48006,2498.5,2498.3,0.00600877]
[1748854275963,22.1898,2498.6,2498.4,40.8]
[1748854276262,22.66984,2498.6,2498.4,40.8]
[1748854276761,22.1898,2498.6,2498.4,41.28006]
[1748854277163,22.1898,2498.6,2498.5,0.48005]
[1748854277562,22.1898,2498.6,2498.4,41.28005]
[1748854278063,1.20024,2498.3,2497.2,1.5892995]
[1748854278264,3.2078,2497.8,2497.4,0.48026]
[1748854278467,3.2078,2497.8,2497.5,40.8]
[1748854278663,3.2078,2498.1,2497.5,40.8]
[1748854278864,19.055,2497.7,2497.6,0.48623877]
[1748854279164,19.051,2498.1,2497.6,0.00600877]
[1748854279365,1.3863,2498.0,2497.6,0.00600877]
[1748854279556,0.48019,2497.8,2497.6,0.00600877]
[1748854279761,1.3863,2498.0,2497.6,0.00600877]
[1748854279762,0.48021,2497.7,2497.6,0.00600877]
[1748854280852,1.3863,2497.8,2497.6,0.00600877]
[1748854281066,1.8665,2497.8,2497.6,0.00600877]
[1748854281259,19.105,2497.7,2497.6,0.48623877]
[1748854281663,19.105,2497.7,2497.6,0.00600877]
[1748854282467,20.4875,2497.7,2497.6,0.48623877]
[1748854282666,19.105,2497.7,2497.6,0.48623877]
[1748854283260,19.105,2497.7,2497.6,0.00600877]
[1748854283468,19.58521,2497.7,2497.6,0.00600877]
[1748854283971,32.08901,2497.7,2497.6,0.00600877]
[1748854284161,28.63184736,2497.7,2497.6,0.00600877]
[1748854284565,28.63187344,2497.7,2497.6,0.00600877]
[1748854284767,28.63184629,2497.7,2497.6,0.00600877]
[1748854284965,28.42421,2497.7,2497.6,0.00600877]
[1748854285263,28.63184822,2497.7,2497.6,0.00600877]
[1748854285569,28.63184619,2497.7,2497.6,0.00600877]
[1748854286169,24.11921,2497.7,2497.6,0.00600877]
[1748854286365,23.639,2497.7,2497.6,0.00600877]
[1748854286562,22.28001,2497.7,2497.6,0.00600877]
[1748854287266,22.48763716,2497.7,2497.6,0.00600877]
[1748854287465,22.28001,2497.7,2497.6,0.00600877]
[1748854287967,21.7998,2497.7,2497.6,0.00600877]
[1748854288168,1.3676,2497.7,2497.6,0.00600877]
[1748854288364,20.93281,2497.7,2497.6,0.00600877]
[1748854288562,20.4496,2497.7,2497.6,0.00600877]
[1748854288868,19.081,2497.7,2497.6,0.00600877]
[1748854289672,20.3737,2497.7,2497.6,0.00600877]
[1748854289869,20.85391,2497.7,2497.6,0.00600877]
[1748854290467,24.06171,2497.7,2497.6,0.00600877]
[1748854290867,24.26935022,2497.7,2497.6,0.00600877]
[1748854291467,24.26935172,2497.7,2497.6,0.00600877]
[1748854291771,4.98071,2497.7,2497.6,0.00600877]
[1748854291966,24.05871,2497.7,2497.6,0.00600877]
[1748854292165,4.98071,2497.7,2497.6,0.00600877]
[1748854292372,24.05971,2497.7,2497.6,0.00600877]
[1748854295970,4.98071,2497.7,2497.6,0.00600877]
[1748854296171,24.03771,2497.7,2497.6,0.00600877]
[1748854296970,24.24536227,2497.7,2497.6,0.00600877]
[1748854297273,24.03771,2497.7,2497.6,0.00600877]
[1748854297575,24.24544089,2497.7,2497.6,0.00600877]
[1748854298473,24.03771,2497.7,2497.6,0.00600877]
[1748854298973,24.24548777,2497.7,2497.6,0.00600877]
[1748854299175,24.2455016,2497.7,2497.6,0.00600877]
[1748854299771,24.24553297,2497.7,2497.6,0.00600877]
[1748854299971,5.18853297,2497.7,2497.6,0.00600877]
[1748854300167,24.2218819,2497.7,2497.6,0.00600877]
[1748854300675,24.01471,2497.7,2497.6,0.00600877]
[1748854300872,24.2218925,2497.7,2497.6,0.00600877]
[1748854301172,24.01471,2497.7,2497.6,0.00600877]
[1748854301376,24.22187988,2497.7,2497.6,0.00600877]
[1748854302175,24.2218796,2497.7,2497.6,0.00600877]
[1748854302371,24.01471,2497.7,2497.6,0.00600877]
[1748854302677,24.2218746,2497.7,2497.6,0.00600877]
[1748854302876,24.01471,2497.7,2497.6,0.00600877]
[1748854303170,29.22187403,2497.7,2497.6,0.00600877]
[1748854303973,29.22191366,2497.7,2497.6,0.00600877]
[1748854304176,29.01471,2497.7,2497.6,0.00600877]
[1748854304371,29.22191343,2497.7,2497.6,0.00600877]
[1748854304577,29.01471,2497.7,2497.6,0.00600877]
[1748854304877,29.91829923,2497.7,2497.6,0.00600877]
[1748854305274,0.48026,2497.4,2497.3,40.8]
[1748854305479,0.48034,2497.0,2496.9,1.19662391]
[1748854305673,0.48036,2496.9,2496.8,1.19662391]
[1748854305871,1.76846,2496.9,2496.8,41.99662391]
[1748854306375,1.2881,2496.9,2496.8,41.99662391]
[1748854306575,0.00600877,2497.1,2496.8,42.39355878]
[1748854306771,0.48034,2497.0,2496.9,1.8305746]
[1748854307078,0.48036,2496.9,2496.8,41.9974746]
[1748854307279,1.76846,2496.9,2496.8,40.8]
[1748854307469,1.76846,2496.9,2496.8,41.99826808]
[1748854308283,1.976447,2496.9,2496.8,40.8]
[1748854308478,0.4804,2496.7,2496.6,1.20427685]
[1748854308689,3.6882,2496.7,2496.6,0.00600877]
[1748854308886,4.09626345,2496.7,2496.6,0.00600877]
[1748854309182,6.07956345,2496.7,2496.6,0.00600877]
[1748854309380,0.48048,2496.3,2496.2,0.26488041]
[1748854309581,0.48057,2495.8,2495.7,2.12519449]
[1748854309778,22.64040907,2495.8,2495.2,1.3787]
[1748854309985,22.64040907,2495.8,2495.2,42.1787]
[1748854309986,0.48067,2495.3,2495.2,42.1787]
[1748854310187,3.2078,2495.5,2495.2,40.8]
[1748854310480,3.2078,2495.5,2494.7,3.86410319]
[1748854310481,0.48068,2495.3,2494.6,3.2078]
[1748854310674,3.2078,2495.5,2495.0,1.3787]
[1748854310879,3.2078,2495.5,2495.1,40.8]
[1748854311085,19.298,2495.4,2495.2,1.3787]
[1748854311288,19.298,2495.4,2495.2,2.7342]
[1748854311478,19.77866,2495.4,2495.2,2.7342]
[1748854311679,19.77866,2495.4,2495.1,40.8]
[1748854311680,19.298,2495.4,2495.1,40.8]
[1748854311983,0.48069,2495.2,2495.1,40.8]
[1748854312186,3.2078,2495.2,2494.4,1.3555]
[1748854312491,3.2078,2495.2,2494.6,1.88249]
[1748854312787,1.87872,2495.1,2494.6,5.7617]
[1748854312977,3.2078,2494.8,2494.4,1.3555]
[1748854313178,19.337,2494.7,2494.6,4.36]
[1748854313382,19.337,2494.7,2494.5,40.8]
[1748854313585,20.735,2494.7,2493.9,3.2078]
[1748854313791,0.48085,2494.4,2493.9,3.2078]
[1748854314086,0.00600877,2494.5,2494.0,42.2017]
[1748854314789,19.36000877,2494.5,2494.0,42.2017]
[1748854314985,0.00600877,2494.5,2494.4,0.48084]
[1748854315191,19.35700877,2494.5,2494.4,0.48084]
[1748854315489,0.00600877,2494.5,2494.4,6.81864]
[1748854315693,0.00600877,2494.5,2494.4,47.61864]
[1748854315987,0.00600877,2494.5,2494.4,46.4988]
[1748854316182,0.00600877,2494.5,2494.4,42.1378]
[1748854316382,0.48682877,2494.5,2494.4,42.1378]
[1748854316586,0.00600877,2494.5,2494.4,42.61864]
[1748854317279,0.00600877,2494.5,2494.4,42.1378]
[1748854317481,0.48682877,2494.5,2494.4,46.4988]
[1748854317991,0.00600877,2494.5,2494.4,42.1378]
[1748854318285,0.00600877,2494.5,2494.4,46.4998]
[1748854318485,0.00600877,2494.5,2494.4,42.1378]
[1748854319090,0.00600877,2494.5,2494.4,46.4998]
[1748854319285,0.00600877,2494.5,2494.4,42.1378]
[1748854319591,0.00600877,2494.5,2494.4,46.98064]
[1748854320087,0.00600877,2494.5,2494.4,42.1378]
[1748854320292,0.00600877,2494.5,2494.4,46.98064]
[1748854321090,3.2078,2495.4,2495.3,0.48067]
[1748854321287,19.346,2495.5,2495.1,4.362]
[1748854321489,19.346,2495.5,2495.4,0.48065]
[1748854321690,5.06417,2495.8,2495.5,0.48063]
[1748854321888,1.3382,2496.1,2495.6,0.4806]
[1748854321889,19.344,2495.7,2495.6,0.4806]
[1748854322390,19.344,2495.7,2495.6,40.8]
[1748854322595,19.344,2495.7,2495.6,41.28061]
[1748854322791,19.337,2495.8,2495.7,0.48059]
[1748854323090,19.334,2495.8,2495.7,1.85079]
[1748854323296,19.33700877,2495.9,2495.8,0.48057]
[1748854323495,19.33700877,2495.9,2495.8,1.85077]
[1748854323698,0.00600877,2495.9,2495.8,1.3702]
[1748854324297,0.00600877,2495.9,2495.8,42.1702]
[1748854325000,0.48655877,2495.9,2495.8,40.8]
[1748854325193,1.78535877,2495.9,2495.8,40.8]
[1748854325994,1.30480877,2495.9,2495.4,1.27270877]
[1748854326193,0.48063,2495.5,2495.4,0.00600877]
[1748854326494,3.68843,2495.5,2495.4,0.00600877]
[1748854328589,0.48071,2495.1,2495.0,40.8]
[1748854328798,19.77971,2495.1,2495.0,40.8]
[1748854329491,21.08651,2495.1,2495.0,40.8]
[1748854331597,0.48078,2494.7,2494.6,3.2078]
[1748854331998,0.48078,2494.7,2494.6,45.345]
[1748854332398,0.48092,2494.0,2493.9,2.0122]
[1748854332599,19.75792,2494.0,2493.9,2.0122]
[1748854332897,22.4848,2494.0,2493.4,8.4234]
[1748854333095,0.48101,2493.6,2493.5,1.3372]
[1748854333495,0.48101,2493.6,2493.5,42.1372]
[1748854333690,0.48101,2493.6,2493.5,40.8]
[1748854334104,0.48101,2493.6,2493.5,42.1484]
[1748854334695,0.68151,2493.6,2493.5,42.1484]
[1748854335601,0.68151,2493.6,2493.5,40.8]
[1748854336103,1.99451,2493.6,2493.5,40.8]
[1748854336299,1.99451,2493.6,2492.8,1.50513339]
[1748854336300,11.0285,2493.6,2492.8,1.50513339]
[1748854336500,0.48113,2492.9,2492.8,0.15673339]
[1748854336807,3.2078,2493.3,2492.8,40.95673339]
[1748854337098,0.4811,2493.1,2492.9,1.3877]
[1748854337296,19.361,2493.2,2492.9,1.3877]
[1748854337697,19.363,2493.2,2493.0,0.4811]
[1748854337993,0.2005,2493.6,2493.1,5.9027]
[1748854338201,0.6815,2493.6,2493.4,3.2078]
[1748854338401,0.6815,2493.6,2493.5,1.3877]
[1748854339007,19.5575,2493.6,2493.5,1.3877]
[1748854339305,3.21380877,2494.2,2493.7,0.48097]
[1748854339504,22.58780877,2494.2,2493.8,1.3594]
[1748854339804,0.48094,2494.0,2493.8,1.3594]
[1748854340006,0.48094,2493.9,2493.8,1.3594]
[1748854340207,1.3527,2494.1,2493.7,3.2078]
[1748854340401,0.48096,2493.8,2493.7,3.2078]
[1748854340698,0.48099,2493.6,2493.5,40.8]
[1748854340904,3.2078,2493.8,2493.1,2.38345052]
[1748854340905,0.48107,2493.2,2493.1,2.38345052]
[1748854341108,19.418,2493.2,2492.9,1.3594]
[1748854341306,0.48111,2493.0,2492.9,1.3594]
[1748854341608,0.48111,2493.0,2492.9,40.8]
[1748854342097,0.48111,2493.0,2492.9,42.1594]
[1748854342904,0.2005,2493.1,2492.9,42.1594]
[1748854343104,0.2005,2493.1,2493.0,3.68891]
[1748854343310,19.95102,2493.5,2493.0,4.5826]
[1748854343504,0.48104,2493.4,2493.0,4.5826]
[1748854343698,0.48105,2493.4,2493.0,9.57971]
[1748854344111,0.48106,2493.3,2493.0,4.5826]
[1748854344406,0.48101,2493.5,2493.0,5.06369]
[1748854344609,3.2078,2493.8,2493.0,4.5826]
[1748854344907,0.481,2493.6,2493.0,4.5826]
[1748854345102,0.48102,2493.5,2493.2,0.48107]
[1748854345303,19.95099,2493.7,2493.3,1.3748]
[1748854345605,19.475,2493.8,2493.3,1.3748]
[1748854345810,0.48103,2493.5,2493.3,1.3748]
[1748854346010,0.48103,2493.4,2493.3,1.3748]
[1748854346504,0.48099,2493.7,2493.4,0.48102]
[1748854346711,3.2078,2493.9,2493.5,1.2761]
[1748854346911,19.95996,2493.8,2493.5,1.75711]
[1748854347110,0.48098,2493.7,2493.5,1.2761]
[1748854347509,0.48099,2493.6,2493.5,1.2761]
[1748854347909,0.48099,2493.6,2493.5,42.0761]
[1748854348507,0.48099,2493.7,2493.5,42.0761]
[1748854348711,19.463,2493.7,2493.5,42.5571]
[1748854348906,3.84900877,2494.2,2493.7,0.48096]
[1748854349109,19.458,2494.1,2493.8,1.3402]
[1748854349307,0.48093,2494.0,2493.8,1.82116]
[1748854349505,3.21380877,2494.2,2493.8,1.3402]
[1748854349715,0.00600877,2494.2,2494.1,0.4809]
[1748854350013,0.00600877,2494.2,2493.9,3.2078]
[1748854350014,0.00600877,2494.2,2494.0,2.5144]